bitfinex/quotes_ETHUSD_20241105
["timestamp","ask_amount","ask_price","bid_price","bid_amount"]
[1730824274601,1.70975964,2453.9,2453.7,0.32484266]
[1730824274800,2.13719955,2454.0,2453.8,0.32484266]
[1730824274801,1.70975964,2454.0,2453.8,0.32484266]
[1730824275009,1.70975964,2453.9,2453.6,0.7798]
[1730824275239,1.70975964,2454.0,2453.7,0.32472614]
[1730824275438,5.78456964,2454.1,2453.8,0.32472614]
[1730824275637,5.78456964,2454.1,2453.9,0.32472614]
[1730824275638,1.70975964,2454.0,2453.9,0.32472614]
[1730824276139,1.70975964,2454.1,2453.8,0.7798]
[1730824277062,1.70975964,2454.2,2453.9,4.07505]
[1730824277342,2.13719955,2454.3,2454.1,0.7729]
[1730824277343,1.70975964,2454.3,2454.1,0.7729]
[1730824278145,1.70975964,2454.4,2454.1,4.84754]
[1730824278445,1.70975964,2454.4,2454.1,0.7729]
[1730824279013,1.70975964,2454.4,2454.3,4.07448]
[1730824279215,1.77000684,2454.8,2454.5,4.07401]
[1730824279415,0.0602472,2454.8,2454.5,4.07401]
[1730824279936,0.0602472,2454.8,2454.6,1.07443215]
[1730824280165,0.0602472,2454.8,2454.6,4.82444]
[1730824280302,0.0602472,2454.8,2454.7,4.82431]
[1730824280504,0.0602472,2454.8,2454.7,4.39731419]
[1730824280712,0.0602472,2454.8,2454.7,5.23627159]
[1730824280904,0.0602472,2454.8,2454.7,8.67203102]
[1730824281103,0.0602472,2454.8,2454.7,12.04728764]
[1730824281305,0.0602472,2456.0,2455.1,0.01]
[1730824281547,0.0602472,2456.0,2455.9,6.89311787]
[1730824281719,0.0602472,2456.0,2455.9,12.07359764]
[1730824281915,0.0602472,2456.0,2455.9,12.58928659]
[1730824282181,0.0602472,2456.0,2455.9,11.75073787]
[1730824282673,0.0602472,2456.0,2455.9,11.74073787]
[1730824283179,0.0602472,2456.0,2455.9,11.75073787]
[1730824284140,4.06987,2457.1,2456.3,4.07105]
[1730824284342,4.9492872,2457.3,2456.5,4.07067]
[1730824284542,4.06985,2457.1,2456.3,7.07101]
[1730824284782,4.0702,2456.9,2456.4,0.8262]
[1730824284978,4.07053,2456.7,2456.1,0.8262]
[1730824285179,4.07067,2456.6,2456.1,0.8262]
[1730824285481,4.07101,2456.4,2455.8,0.7836]
[1730824285640,4.07085,2456.5,2455.9,4.07182]
[1730824285849,4.07085,2456.5,2455.8,4.85557]
[1730824286053,4.963209,2456.5,2455.8,0.7836]
[1730824286252,4.071,2456.4,2455.8,0.7836]
[1730824286489,4.963209,2456.5,2455.8,0.7836]
[1730824286662,4.071,2456.4,2455.8,0.7836]
[1730824286987,4.07168,2456.0,2455.4,0.8132]
[1730824287193,4.07167,2456.0,2455.4,0.8132]
[1730824287653,4.07167,2456.0,2455.4,0.89464036]
[1730824287853,4.07167,2456.0,2455.4,0.8132]
[1730824288396,0.8091,2456.1,2455.4,0.8132]
[1730824288551,4.07186,2455.9,2455.4,0.8132]
[1730824288760,1.297146,2456.1,2455.4,0.8132]
[1730824288971,1.297146,2456.1,2455.5,0.08144101]
[1730824289199,4.07177,2456.0,2455.5,0.08144101]
[1730824289510,4.07177,2456.0,2455.4,0.8132]
[1730824289655,4.07139,2456.2,2455.5,0.081441]
[1730824289855,0.01,2456.9,2455.5,0.081441]
[1730824289856,4.07072,2456.6,2455.8,0.8309]
[1730824290100,4.07054,2456.7,2455.9,4.0717]
[1730824290394,4.07054,2456.7,2456.0,4.07155]
[1730824290594,4.07053,2456.7,2456.1,4.15287742]
[1730824290910,0.41400072,2457.1,2456.1,4.15287742]
[1730824290911,8.14015,2457.0,2456.2,0.7577]
[1730824291202,4.07001,2457.0,2456.3,4.0711]
[1730824291412,4.07001,2457.0,2456.3,4.07105]
[1730824291558,8.14016,2457.0,2456.3,4.07105]
[1730824291759,4.07001,2457.0,2456.2,0.7577]
[1730824292000,4.07036,2456.8,2456.2,3.7577]
[1730824292312,4.07001,2457.0,2456.3,4.07115]
[1730824292461,4.07001,2457.0,2456.4,4.07094]
[1730824292663,4.07011,2457.0,2456.3,4.07115]
[1730824292967,4.07011,2457.0,2456.3,8.22359749]
[1730824293184,4.07011,2457.0,2456.3,4.15244749]
[1730824293382,4.06969,2457.2,2456.3,4.07103]
[1730824293383,4.06986,2457.1,2456.3,4.07103]
[1730824293586,4.07001,2457.0,2456.3,4.07103]
[1730824294102,4.06974,2457.2,2456.3,4.07115]
[1730824294310,4.48273872,2457.2,2456.5,4.07077]
[1730824294595,4.07001,2457.0,2456.3,8.1422]
[1730824294893,4.07017,2456.9,2456.3,4.07105]
[1730824295191,4.07001,2457.0,2456.4,4.07099]
[1730824295392,4.07001,2457.0,2456.3,4.07105]
[1730824295393,8.14015,2457.0,2456.3,4.07105]
[1730824295698,4.07019,2456.9,2456.3,4.07105]
[1730824295863,4.07001,2457.0,2456.3,4.07105]
[1730824296055,4.51831087,2457.0,2456.3,4.07105]
[1730824296264,4.07034,2456.8,2456.2,4.829]
[1730824296608,5.34138087,2457.0,2456.3,4.07115]
[1730824296609,0.44830087,2457.0,2456.3,4.07115]
[1730824296757,4.06972,2457.2,2456.5,4.07082]
[1730824296957,4.06983,2457.1,2456.5,4.07082]
[1730824297200,0.8654472,2457.3,2456.6,0.7729]
[1730824297201,0.0602472,2457.3,2456.6,0.7729]
[1730824297525,0.0602472,2457.3,2457.1,0.7729]
[1730824298409,0.0602472,2457.3,2457.1,4.84272]
[1730824298615,0.0602472,2457.3,2457.1,0.7729]
[1730824299202,0.0602472,2457.3,2457.1,4.84271]
[1730824299371,0.0602472,2457.3,2457.1,4.92409629]
[1730824299571,8.13752,2457.8,2457.1,4.84271]
[1730824299572,4.06885,2457.7,2457.1,4.84271]
[1730824299777,0.813756,2457.7,2457.2,4.06963]
[1730824300018,0.813756,2457.7,2457.1,4.84262]
[1730824300019,4.06871,2457.8,2457.1,4.8426]
[1730824300315,4.06871,2457.8,2457.2,4.15097622]
[1730824300616,4.06871,2457.8,2457.2,4.15105622]
[1730824300917,4.06886,2457.7,2457.1,4.8426]
[1730824301091,4.06871,2457.8,2457.1,4.8426]
[1730824301295,4.06871,2457.8,2457.2,4.15104456]
[1730824301615,4.06902,2457.6,2457.1,4.8426]
[1730824302136,4.882421,2457.8,2457.2,4.06956]
[1730824302321,4.06861,2457.9,2457.3,4.06937]
[1730824302689,4.06841,2458.0,2457.4,4.1507076]
[1730824302888,4.06841,2458.0,2457.4,0.0813776]
[1730824303217,4.06841,2458.0,2457.3,4.06945]
[1730824303387,4.06841,2458.0,2457.2,4.06956]
[1730824303388,4.06867,2457.8,2457.2,4.06956]
[1730824303581,4.06861,2457.9,2457.3,4.06939]
[1730824304707,0.01,2459.1,2457.6,0.7673]
[1730824305027,4.06679,2459.0,2457.8,4.58976827]
[1730824305209,0.7549,2459.3,2458.2,0.7673]
[1730824305210,4.06713,2458.8,2458.2,0.7673]
[1730824305520,4.06728,2458.7,2458.2,0.7673]
[1730824305826,4.1278572,2458.5,2458.2,0.7673]
[1730824306027,4.1278572,2458.5,2457.9,0.8114]
[1730824306028,4.06795,2458.3,2457.9,0.8114]
[1730824306232,0.0602472,2458.5,2457.8,4.59976827]
[1730824306524,0.0702472,2459.7,2458.8,4.87827]
[1730824306525,4.06595,2459.5,2458.8,4.87827]
[1730824306876,4.1258272,2459.7,2458.9,4.06685]
[1730824307075,0.0602472,2459.7,2458.8,0.8114]
[1730824307286,4.06603,2459.5,2458.8,4.87841]
[1730824307494,4.88521372,2459.5,2458.8,4.87841]
[1730824307879,4.06573,2459.6,2458.9,0.08132455]
[1730824308393,4.06594,2459.5,2458.8,4.87841]
[1730824309187,4.06571,2459.6,2458.9,4.06676]
[1730824309384,4.06571,2459.6,2458.9,4.06683]
[1730824309608,4.06571,2459.6,2459.0,4.06665]
[1730824309917,4.06583,2459.6,2458.8,4.87841]
[1730824310079,4.1258172,2459.7,2459.1,4.0664]
[1730824310080,0.0602472,2459.7,2459.1,4.0664]
[1730824310280,0.0602472,2459.7,2459.0,0.8191]
[1730824310281,4.1257872,2459.7,2459.0,0.8191]
[1730824310481,4.06649,2459.2,2458.7,0.8191]
[1730824310724,4.06669,2459.0,2458.7,0.8191]
[1730824310886,4.06649,2459.2,2458.7,0.8191]
[1730824311092,4.06657,2459.1,2458.7,0.8191]
[1730824311276,4.06653,2459.1,2458.7,0.8191]
[1730824311478,4.06664,2459.1,2458.7,0.8191]
[1730824311683,4.06669,2459.0,2458.7,0.8191]
[1730824312118,8.13352,2459.0,2458.7,0.8191]
[1730824312325,8.13352,2459.0,2458.3,8.91156]
[1730824312326,4.06669,2459.0,2458.3,8.91156]
[1730824312532,4.06696,2458.9,2458.3,4.84382]
[1730824312824,4.06696,2458.9,2458.3,0.7761]
[1730824312825,4.06734,2458.7,2458.3,0.7761]
[1730824313135,4.06736,2458.6,2458.3,0.7761]
[1730824313293,4.06768,2458.4,2457.8,5.16692602]
[1730824313624,4.06722,2458.7,2458.0,8.13643]
[1730824313823,4.06752,2458.5,2457.8,4.84824]
[1730824314191,8.13451,2458.7,2458.0,4.06829]
[1730824314386,0.55,2458.9,2457.8,4.84824]
[1730824314632,0.55,2458.6,2457.8,0.7797]
[1730824314921,0.55,2458.6,2458.0,4.06822]
[1730824315125,0.55,2458.6,2457.8,4.84829]
[1730824315330,4.06752,2458.5,2457.9,4.0685]
[1730824316209,4.06695,2458.9,2458.3,0.8025]
[1730824316601,4.0672,2458.7,2458.3,0.8025]
[1730824316901,4.1744,2459.1,2457.9,0.7694]
[1730824316902,4.06769,2458.4,2457.9,0.7694]
[1730824317088,0.8168,2458.6,2458.1,4.06809]
[1730824317735,4.06711,2458.8,2458.2,0.08135146]
[1730824317898,4.06711,2458.8,2458.2,4.06791]
[1730824318097,4.06732,2458.7,2458.1,4.06808]
[1730824318917,4.06711,2458.8,2458.1,4.06808]
[1730824319124,4.06745,2458.6,2457.9,4.83788]
[1730824319290,4.06762,2458.5,2458.0,0.31933891]
[1730824319492,4.0677,2458.4,2458.0,0.31933891]
[1730824319715,4.06745,2458.6,2457.9,4.83788]
[1730824319914,4.555461,2458.8,2458.1,4.06807]
[1730824320138,4.06707,2458.8,2458.1,4.06805]
[1730824320542,4.06707,2458.8,2458.2,4.38740016]
[1730824320856,4.06707,2458.8,2458.3,4.06783]
[1730824321042,0.8168,2458.9,2458.4,4.06768]
[1730824321245,8.13359,2459.0,2458.4,4.89098]
[1730824321546,4.06679,2459.0,2458.4,0.8233]
[1730824321726,4.06733,2458.7,2458.4,0.8233]
[1730824321923,4.0673,2458.7,2458.2,0.40074479]
[1730824322137,4.0673,2458.7,2458.3,0.31953406]
[1730824322351,3.3804,2459.1,2458.5,0.8233]
[1730824322352,7.44702,2459.1,2458.5,0.8233]
[1730824322553,7.06662,2459.1,2458.5,4.89079]
[1730824322757,4.06703,2458.8,2458.2,4.89121]
[1730824322919,4.06703,2458.8,2458.3,0.31953975]
[1730824322920,8.13418,2458.8,2458.3,0.31953975]
[1730824323120,8.13419,2458.8,2458.2,5.40269288]
[1730824323323,4.06703,2458.8,2458.2,4.89121]
[1730824323670,4.06703,2458.8,2458.3,0.31968547]
[1730824323847,4.06703,2458.8,2458.2,5.40271343]
[1730824324045,4.61721,2458.7,2458.3,0.31969021]
[1730824324367,4.61721,2458.7,2458.4,0.31969021]
[1730824324368,0.55,2458.5,2458.4,0.31969021]
[1730824324564,4.84163,2458.1,2457.7,0.32012437]
[1730824324768,4.84163,2458.1,2457.5,4.5812657]
[1730824324914,0.55,2458.3,2457.7,4.06883]
[1730824325114,0.7734,2458.4,2457.9,4.06851]
[1730824325461,0.55,2458.6,2458.0,0.40162751]
[1730824325763,0.55,2458.6,2458.1,0.4016207]
[1730824325921,4.06757,2458.5,2457.9,4.85489]
[1730824326124,8.13524,2458.5,2458.0,0.83301148]
[1730824326318,4.06779,2458.4,2458.1,0.32023275]
[1730824326651,0.55,2458.6,2458.2,0.32023275]
[1730824326970,5.26494266,2459.3,2458.5,4.06752]
[1730824327118,4.06637,2459.2,2458.6,0.08133331]
[1730824327359,4.83971,2459.3,2458.7,4.90038362]
[1730824327558,4.06591,2459.5,2458.8,0.40183606]
[1730824327795,4.06591,2459.5,2459.0,0.8145]
[1730824328108,4.06591,2459.5,2459.1,0.32050266]
[1730824328288,8.13193,2459.5,2459.2,0.32050266]
[1730824328595,4.06603,2459.4,2459.0,0.8145]
[1730824328759,4.06591,2459.5,2459.1,0.32050706]
[1730824329100,4.06591,2459.5,2459.2,0.32050706]
[1730824329255,4.06591,2459.5,2459.3,0.32050706]
[1730824329456,4.06591,2459.5,2459.0,0.8145]
[1730824329457,4.06591,2459.5,2459.0,0.89582284]
[1730824329771,4.06604,2459.4,2459.1,0.83346286]
[1730824329970,4.06619,2459.3,2459.2,0.32056006]
[1730824330359,0.0602472,2459.7,2459.2,0.32056006]
[1730824330696,0.0602472,2459.7,2459.0,0.8145]
[1730824330697,0.0602472,2459.7,2459.3,0.32058059]
[1730824330854,0.0602472,2459.7,2459.4,0.83351624]
[1730824331054,4.1258872,2459.7,2459.5,0.8336]
[1730824331299,4.1258872,2459.7,2459.6,0.32058059]
[1730824331300,5.34287592,2459.7,2459.6,0.32058059]
[1730824331593,4.0658,2459.6,2459.2,0.51287895]
[1730824331771,4.9302872,2459.7,2459.3,0.83342371]
[1730824331971,0.0602472,2459.7,2459.4,0.83341916]
[1730824332187,0.0602472,2459.7,2459.5,0.32054476]
[1730824332390,0.0602472,2459.7,2459.6,0.32054476]
[1730824334170,0.0602472,2459.7,2459.2,0.8035]
[1730824334365,0.0602472,2459.7,2459.3,0.83602416]
[1730824334563,0.0602472,2459.7,2459.4,0.9173359]
[1730824334828,0.0602472,2459.7,2459.5,0.83602416]
[1730824335026,0.0602472,2459.7,2459.6,0.83620089]
[1730824335516,0.0602472,2459.7,2459.6,0.32154521]
[1730824336337,0.0602472,2459.7,2459.6,4.38724521]
[1730824336501,0.55,2459.6,2458.4,0.84025518]
[1730824336708,0.8324472,2459.7,2458.4,0.84025518]
[1730824336709,0.0602472,2459.7,2459.2,0.8035]
[1730824336927,0.0602472,2459.7,2459.3,0.59579162]
[1730824337125,0.0602472,2459.7,2459.4,0.51447731]
[1730824337323,0.0602472,2459.7,2459.4,0.08131407]
[1730824337534,0.0602472,2459.7,2459.4,4.06592]
[1730824337719,0.0602472,2459.7,2459.2,4.86976]
[1730824338049,0.0602472,2459.7,2459.3,0.51434842]
[1730824338554,0.0602472,2459.7,2459.3,0.51408164]
[1730824338704,0.0602472,2459.7,2459.2,4.86972]
[1730824338905,0.0602472,2459.7,2459.3,0.59535116]
[1730824339157,0.0602472,2459.7,2459.4,0.51404256]
[1730824339301,0.0602472,2459.7,2459.3,4.58021256]
[1730824339505,0.0602472,2459.7,2459.3,0.51404256]
[1730824339699,0.0602472,2459.7,2459.2,0.8035]
[1730824339700,4.1259072,2459.7,2459.2,0.8035]
[1730824339902,0.0602472,2459.7,2459.2,5.38374256]
[1730824340204,0.0602472,2459.7,2459.4,4.06601]
[1730824340615,0.0602472,2459.7,2459.4,8.13191]
[1730824340847,0.0602472,2459.7,2459.5,0.0813074]
[1730824341014,0.0602472,2459.7,2459.4,4.06593]
[1730824341206,0.0602472,2459.7,2459.6,7.0657]
[1730824341900,0.8232,2460.3,2459.7,4.06544]
[1730824342106,4.06471,2460.2,2459.6,7.0657]
[1730824342348,0.8232,2460.3,2459.7,4.06543]
[1730824342675,0.8232,2460.3,2459.6,7.0656]
[1730824342676,0.06,2460.5,2460.0,4.82373]
[1730824342862,4.12414,2460.6,2460.0,4.82373]
[1730824343062,4.12414,2460.6,2460.0,0.7587]
[1730824343269,0.06,2460.6,2460.3,4.06442]
[1730824343470,0.1202472,2460.9,2460.4,0.7699]
[1730824343652,4.1839372,2460.9,2460.4,0.7699]
[1730824343851,4.1839372,2460.9,2459.8,8.65508827]
[1730824343852,0.1202472,2460.9,2460.2,3.0]
[1730824344170,0.0602472,2462.1,2461.3,4.06289]
[1730824344338,4.06225,2461.7,2461.2,0.7699]
[1730824344535,4.874678,2461.7,2461.2,0.7699]
[1730824344738,4.874678,2461.7,2460.8,0.7832]
[1730824344739,4.0626,2461.5,2460.8,0.7832]
[1730824344982,4.06273,2461.4,2460.8,0.7832]
[1730824345192,4.06273,2461.4,2460.5,0.7832]
[1730824345193,4.06299,2461.3,2460.5,0.7832]
[1730824345372,4.06328,2461.1,2460.5,0.7832]
[1730824346103,4.06328,2461.1,2460.6,0.08127226]
[1730824346265,4.06328,2461.1,2460.5,0.7832]
[1730824346580,4.0637,2460.9,2460.3,4.06453]
[1730824346748,4.06328,2461.1,2460.3,4.06453]
[1730824346948,0.44714179,2461.0,2460.3,4.06453]
[1730824347152,0.40813794,2461.2,2460.4,0.08127591]
[1730824347153,3.40813794,2461.2,2460.4,0.08127591]
[1730824347378,4.06334,2461.1,2460.5,4.06406]
[1730824347765,4.0634,2461.0,2460.3,4.06453]
[1730824348064,4.06355,2460.9,2460.3,4.06453]
[1730824348662,4.06333,2461.1,2460.3,4.06441]
[1730824348866,4.06339,2461.0,2460.3,4.06441]
[1730824349060,4.91861173,2461.1,2460.3,4.06441]
[1730824349289,4.06339,2461.0,2460.3,8.12881]
[1730824349500,4.06339,2461.0,2460.4,4.06435]
[1730824349909,4.06355,2460.9,2460.3,4.0644]
[1730824350107,4.0634,2461.0,2460.3,4.0644]
[1730824350317,4.0634,2461.0,2460.3,8.12882]
[1730824350614,4.06327,2461.1,2460.3,4.0644]
[1730824350615,4.0636,2460.9,2460.3,4.0644]
[1730824351146,0.0183894,2461.3,2460.2,0.7929]
[1730824351147,4.06383,2460.8,2460.2,0.7929]
[1730824351274,0.406383,2460.7,2460.2,0.7929]
[1730824351474,4.06405,2460.6,2460.2,0.7929]
[1730824351771,0.98089616,2460.5,2460.2,0.7929]
[1730824351976,0.98089616,2460.4,2460.2,0.7929]
[1730824352211,0.37726775,2460.3,2460.2,0.7929]
[1730824352577,4.69219883,2461.0,2460.2,4.85755]
[1730824352774,0.98081365,2460.9,2460.2,0.7929]
[1730824353100,0.98081365,2460.8,2460.2,4.85759]
[1730824353302,0.37723602,2460.7,2460.2,0.7929]
[1730824353476,0.37723602,2460.6,2460.2,0.7929]
[1730824353794,4.06365,2460.9,2460.2,0.7929]
[1730824353990,4.06382,2460.8,2460.2,0.7929]
[1730824354310,4.06395,2460.7,2460.2,0.7929]
[1730824354617,4.06431,2460.5,2460.0,0.31908401]
[1730824354817,4.06431,2460.5,2459.9,0.7714]
[1730824354984,8.12796,2460.7,2459.9,0.7714]
[1730824355311,4.06392,2460.7,2459.9,1.09096079]
[1730824355718,8.12795,2460.7,2459.9,1.09096079]
[1730824356018,4.06392,2460.7,2459.9,1.60160586]
[1730824356326,4.06392,2460.7,2460.0,0.31953866]
[1730824356683,8.12796,2460.7,2460.0,0.31953866]
[1730824356977,4.06405,2460.6,2460.0,0.31953866]
[1730824357210,4.06449,2460.4,2460.0,0.31953866]
[1730824357474,8.12861,2460.5,2460.0,0.31953866]
[1730824357605,4.06425,2460.5,2460.0,0.31953866]
[1730824357776,4.06425,2460.5,2459.9,1.09093866]
[1730824357984,1.3167,2460.8,2459.9,0.7714]
[1730824358184,0.56804802,2460.9,2460.1,4.58976827]
[1730824358397,0.56804802,2460.9,2460.2,4.38435499]
[1730824358398,4.06385,2460.8,2460.2,4.38435499]
[1730824358683,4.06385,2460.8,2460.3,0.319729]
[1730824358895,4.06366,2460.9,2460.3,0.319729]
[1730824359084,8.88913,2461.1,2460.4,0.84107275]
[1730824359285,4.0634,2461.0,2460.4,4.90534275]
[1730824359588,4.06364,2460.9,2460.4,0.7598]
[1730824359808,8.12734,2460.9,2460.4,1.07957163]
[1730824360013,8.12734,2460.9,2460.4,0.7598]
[1730824360217,4.06364,2460.9,2460.4,0.84107244]
[1730824360520,4.06328,2461.1,2460.5,4.06421]
[1730824360721,4.0813794,2461.3,2460.4,0.84107244]
[1730824360722,8.1443994,2461.3,2460.6,4.14521521]
[1730824360931,4.06307,2461.2,2460.6,4.14521521]
[1730824361588,4.06323,2461.1,2460.6,4.14521521]
[1730824362088,4.06323,2461.1,2460.6,4.06395]
[1730824362515,4.06323,2461.1,2460.6,4.14521586]
[1730824362892,4.56974734,2461.3,2460.6,4.14521586]
[1730824363088,4.0813694,2461.3,2460.8,4.06369]
[1730824363294,0.0183894,2461.3,2460.9,4.06354]
[1730824363597,0.0183894,2461.3,2461.1,4.06321]
[1730824363827,0.0183894,2461.3,2461.2,4.06305]
[1730824364039,0.0183894,2461.3,2461.1,4.06321]
[1730824364194,0.0183894,2461.3,2461.1,4.06311]
[1730824364392,0.0183894,2461.3,2461.2,4.06305]
[1730824364688,1.6980159,2462.5,2461.2,4.06305]
[1730824364689,0.8092,2462.3,2461.5,4.06244]
[1730824364890,0.0614439,2462.5,2461.7,0.804]
[1730824365107,4.06133,2462.3,2461.7,0.804]
[1730824365348,0.41227739,2462.3,2461.7,0.804]
[1730824365549,0.0614439,2462.5,2461.7,0.804]
[1730824365759,8.12306,2462.2,2461.7,0.804]
[1730824366055,4.06206,2461.8,2461.4,0.765]
[1730824367012,4.06258,2461.5,2461.0,0.765]
[1730824367220,4.06241,2461.6,2461.0,4.82837]
[1730824367414,4.0619,2461.9,2461.1,0.31953351]
[1730824367613,4.06262,2461.5,2461.1,0.31953351]
[1730824367822,4.06262,2461.5,2461.0,1.08453351]
[1730824368052,4.0623,2461.7,2461.0,5.14787351]
[1730824368220,4.06244,2461.6,2461.1,0.40082723]
[1730824368419,4.06269,2461.5,2461.1,0.31957542]
[1730824368642,8.12539,2461.5,2461.0,1.08457542]
[1730824368835,4.06269,2461.5,2461.0,0.765]
[1730824369011,4.06269,2461.5,2461.0,1.08457542]
[1730824369222,4.06269,2461.5,2461.0,0.765]
[1730824369712,4.06272,2461.4,2461.0,0.31959539]
[1730824369913,4.06272,2461.4,2460.7,0.8217]
[1730824369914,4.06308,2461.2,2460.8,0.31959539]
[1730824370153,4.06308,2461.2,2460.9,0.31959539]
[1730824370314,4.06308,2461.2,2460.7,4.88556]
[1730824370515,4.06308,2461.2,2460.8,0.31984465]
[1730824370763,4.06282,2461.4,2460.9,0.31984465]
[1730824370961,4.06282,2461.4,2461.1,0.8118]
[1730824371158,4.06282,2461.4,2460.7,4.57526305]
[1730824371159,4.06298,2461.3,2460.8,0.8118]
[1730824371314,4.06298,2461.3,2460.9,0.31996201]
[1730824371516,4.06298,2461.3,2461.0,0.31996201]
[1730824371857,4.06298,2461.3,2461.1,0.31993535]
[1730824372022,4.06282,2461.4,2460.8,1.32320305]
[1730824372023,8.12567,2461.4,2460.8,5.38689305]
[1730824372225,4.0629,2461.3,2460.9,0.83143799]
[1730824372575,0.812572,2461.3,2461.0,0.32003494]
[1730824372879,4.06293,2461.3,2460.8,0.8118]
[1730824373083,8.12593,2461.3,2460.9,0.32003887]
[1730824373381,8.12595,2461.3,2460.8,1.32320305]
[1730824373576,4.06293,2461.3,2460.9,0.32023114]
[1730824373775,8.12593,2461.3,2461.0,0.32023114]
[1730824374073,4.06307,2461.2,2460.8,1.32320305]
[1730824374269,4.06324,2461.1,2460.9,0.32025551]
[1730824374444,4.06298,2461.3,2460.6,0.7871]
[1730824374647,4.06298,2461.3,2460.7,4.89664043]
[1730824374975,0.889933,2461.3,2460.8,0.32032004]
[1730824375180,4.06316,2461.2,2460.9,0.32032004]
[1730824375469,4.06316,2461.2,2460.7,0.51259215]
[1730824375782,0.06,2462.1,2461.9,4.06186]
[1730824375942,0.06,2462.1,2462.0,0.8198]
[1730824376138,0.0614439,2462.5,2462.0,0.8198]
[1730824376139,0.06,2462.4,2462.1,4.06141]
[1730824376351,0.06,2462.4,2462.0,0.8198]
[1730824376550,0.06,2462.4,2462.1,0.31959896]
[1730824376787,0.06,2462.4,2462.0,0.8198]
[1730824377507,0.06,2462.4,2461.8,0.08123412]
[1730824377508,0.8262,2462.3,2461.8,0.08123412]
[1730824377651,1.32706139,2462.3,2461.6,0.08123321]
[1730824377985,0.06,2462.4,2461.8,4.06204]
[1730824378192,4.12108,2462.4,2461.9,4.38152205]
[1730824378492,4.12108,2462.4,2462.0,0.31943475]
[1730824378493,4.12109,2462.4,2462.0,0.31943475]
[1730824378654,4.06126,2462.3,2461.8,0.31946224]
[1730824378854,4.06161,2462.1,2461.5,4.84165]
[1730824379079,4.85374,2462.3,2461.6,4.38173815]
[1730824379080,8.91511,2462.3,2461.6,4.38173815]
[1730824379249,4.12109,2462.4,2461.7,4.38155815]
[1730824379462,0.06,2462.4,2461.8,4.90922642]
[1730824379764,0.06,2462.4,2462.1,4.06145]
[1730824379952,0.06,2462.4,2462.1,8.12292]
[1730824380294,0.06,2462.4,2462.1,4.06145]
[1730824381055,0.06,2462.4,2462.2,4.0614]
[1730824381391,0.1214439,2462.5,2462.2,4.0614]
[1730824381588,0.1214439,2462.5,2462.1,4.06145]
[1730824382094,0.1214439,2462.5,2462.1,4.06152]
[1730824382295,0.1214439,2462.5,2462.0,4.06158]
[1730824382497,0.1214439,2462.5,2461.9,4.88891]
[1730824382787,4.06113,2462.4,2461.9,0.8271]
[1730824382991,0.1214439,2462.5,2461.9,0.8271]
[1730824382992,4.1824839,2462.5,2461.9,0.8271]
[1730824383491,4.1824839,2462.5,2462.0,4.0617]
[1730824383663,4.1824839,2462.5,2461.9,4.88885]
[1730824383872,4.1824839,2462.5,2461.9,0.8271]
[1730824384081,4.1824539,2462.5,2462.0,0.08122647]
[1730824384468,4.1824539,2462.5,2461.9,4.88897]
[1730824384704,4.1824539,2462.5,2461.9,8.95078]
[1730824384871,4.1824539,2462.5,2462.0,4.0617]
[1730824385199,4.1824539,2462.5,2461.9,4.88891]
[1730824385399,8.2434839,2462.5,2461.9,4.8889]
[1730824385610,8.2434839,2462.5,2461.7,4.06214]
[1730824385611,4.06124,2462.3,2461.6,0.8256]
[1730824385816,4.06166,2462.1,2461.6,1.14433152]
[1730824385968,4.06143,2462.2,2461.7,4.06206]
[1730824386303,4.06138,2462.3,2461.8,4.06197]
[1730824386668,0.8155,2462.4,2461.8,4.06197]
[1730824386893,4.1824039,2462.5,2462.0,4.06169]
[1730824387100,4.1824039,2462.5,2461.8,4.85264]
[1730824387101,4.1824039,2462.5,2461.8,4.85252]
[1730824387297,4.1824039,2462.5,2461.9,4.06178]
[1730824387510,4.06145,2462.2,2461.8,0.7906]
[1730824388207,0.1214439,2462.5,2462.4,0.7906]
[1730824388365,0.1214439,2462.5,2462.4,4.93287781]
[1730824388565,0.1214439,2462.5,2462.4,9.52264608]
[1730824388770,0.1214439,2462.5,2462.4,9.44143827]
[1730824388967,0.005,2462.8,2462.4,12.75965418]
[1730824389166,0.005,2462.8,2462.7,12.46184827]
[1730824389366,0.005,2462.8,2462.7,12.78003396]
[1730824390208,0.005,2462.8,2462.7,8.69897788]
[1730824390367,0.005,2462.8,2462.7,1.12968569]
[1730824390568,0.005,2462.8,2462.7,0.8115]
[1730824390767,0.005,2462.8,2462.7,4.95327731]
[1730824391010,0.005,2462.8,2462.7,0.89269731]
[1730824391209,0.005,2462.8,2462.4,0.7974]
[1730824391645,0.005,2462.8,2462.5,0.08120805]
[1730824391787,0.005,2462.8,2462.6,0.08120097]
[1730824392232,0.005,2462.8,2462.4,8.91928]
[1730824392532,0.005,2462.8,2462.5,4.06079]
[1730824392719,0.005,2462.8,2462.6,4.06074]
[1730824393086,0.005,2462.8,2462.4,8.91938]
[1730824393290,0.005,2462.8,2462.6,4.06061]
[1730824394338,0.005,2462.8,2462.7,7.14177778]
[1730824394543,0.005,2462.8,2462.4,5.380502]
[1730824394832,0.005,2462.8,2462.6,4.06065]
[1730824395338,0.005,2462.8,2462.7,4.06058]
[1730824395537,0.005,2462.8,2462.7,4.89268]
[1730824395696,0.005,2462.8,2462.7,5.20980905]
[1730824396039,4.05952,2463.4,2462.8,4.06034]
[1730824396211,4.0596,2463.3,2462.7,0.8321]
[1730824396408,0.0614439,2463.8,2462.7,0.8321]
[1730824396409,0.0614439,2463.8,2463.0,4.58976827]
[1730824396592,0.0614439,2463.8,2463.1,0.7824]
[1730824396797,4.05954,2463.4,2462.9,0.31694484]
[1730824396992,0.0614439,2463.8,2462.8,0.7824]
[1730824396993,8.1792039,2463.8,2462.8,0.7824]
[1730824397300,4.1203039,2463.8,2463.1,4.05981]
[1730824397500,4.1203039,2463.8,2462.8,0.7824]